fUSD/lending_fUSD_20240517
["ID","MTS","AMOUNT","RATE_DAILY","PERIOD"]
[327266493,1715951438753,-500.0,0.00012871,2]
[327266494,1715951438764,-500.0,0.00012871,2]
[327266495,1715951438773,-500.0,0.00012871,2]
[327266496,1715951438783,-500.0,0.00012871,2]
[327266497,1715951438792,-500.0,0.00012871,2]
[327266498,1715951438804,-500.0,0.00012871,2]
[327266499,1715951438813,-271.64,0.00012871,2]
[327266500,1715951438823,-4514.4,0.00012871,2]
[327266501,1715951438833,-500.0,0.00012871,2]
[327266502,1715951438846,-419.04,0.00012871,2]
[327266503,1715951438855,-500.0,0.00012871,2]
[327266504,1715951438865,-500.0,0.00012871,2]
[327266505,1715951438875,-500.0,0.00012871,2]
[327266506,1715951438884,-500.0,0.00012871,2]
[327266507,1715951438893,-500.0,0.00012871,2]
[327266508,1715951438903,-500.0,0.00012871,2]
[327266509,1715951438915,-500.0,0.00012871,2]
[327266510,1715951438925,-500.0,0.00012871,2]
[327266511,1715951438935,-500.0,0.00012871,2]
[327266512,1715951438945,-500.0,0.00012871,2]
[327266513,1715951438954,-500.0,0.00012871,2]
[327266514,1715951438963,-500.0,0.00012872,2]
[327266515,1715951438973,-500.0,0.00012872,2]
[327266516,1715951438982,-505.16,0.00012872,2]
[327266517,1715951438991,-500.0,0.00012872,2]
[327266518,1715951439000,-500.0,0.00012872,2]
[327266519,1715951439010,-500.0,0.00012872,2]
[327266520,1715951439020,-500.0,0.00012872,2]
[327266521,1715951439029,-1566.06,0.00012872,2]
[327266522,1715951439039,-375.44,0.00012872,2]
[327266523,1715951439048,-500.0,0.00012872,2]
[327266524,1715951439059,-500.0,0.00012872,2]
[327266525,1715951439069,-500.0,0.00012872,2]
[327266526,1715951439079,-500.0,0.00012872,2]
[327266527,1715951439089,-565.6,0.00012872,2]
[327266528,1715951439098,-500.0,0.00012872,2]
[327266529,1715951439108,-500.0,0.00012872,2]
[327266530,1715951439118,-500.0,0.00012872,2]
[327266539,1715951439326,-500.0,0.00012872,2]
[327266540,1715951439337,-880.34,0.00012872,2]
[327266541,1715951439347,-500.0,0.00012872,2]
[327266542,1715951439356,-500.0,0.00012872,2]
[327266543,1715951439365,-500.0,0.00012872,2]
[327266544,1715951439375,-291.31,0.00012872,2]
[327266545,1715951439385,-500.0,0.00012872,2]
[327266546,1715951439395,-3604.52,0.00012872,2]
[327266547,1715951439405,-500.0,0.00012872,2]
[327266548,1715951439415,-500.0,0.00012872,2]
[327266549,1715951439425,-500.0,0.00012872,2]
[327266550,1715951439435,-500.0,0.00012872,2]
[327266551,1715951439445,-500.0,0.00012872,2]
[327266552,1715951439455,-752.33,0.00012872,2]
[327266553,1715951439464,-500.0,0.00012872,2]
[327266554,1715951439474,-696.95,0.00012872,2]
[327266556,1715951439484,-500.0,0.00012872,2]
[327266558,1715951439493,-500.0,0.00012872,2]
[327266560,1715951439503,-500.0,0.00012872,2]
[327266562,1715951439514,-500.0,0.00012872,2]
[327266564,1715951439523,-500.0,0.00012872,2]
[327266566,1715951439534,-500.0,0.00012872,2]
[327266568,1715951439544,-500.0,0.00012872,2]
[327266570,1715951439555,-500.0,0.00012872,2]
[327266572,1715951439564,-453.61871616,0.00012872,2]
[327266575,1715951439574,-24967.9645776,0.00012873,2]
[327266576,1715951439585,-1411.2901267,0.00012873,2]
[327266578,1715951439595,-3445.4307824,0.00012873,2]
[327266580,1715951439604,-1156.3421703,0.00012873,2]
[327266582,1715951439614,-203.2400206,0.00012873,2]
[327266584,1715951439623,-1340.0857837,0.00012873,2]
[327266586,1715951439633,-500.0,0.00012877,2]
[327266588,1715951439643,-500.0,0.00012877,2]
[327266590,1715951439652,-500.0,0.00012877,2]
[327266592,1715951439661,-500.0,0.00012877,2]
[327266594,1715951439671,-487.59875694,0.00012877,2]
[327266596,1715951439680,-500.0,0.00012877,2]
[327266598,1715951439690,-500.0,0.00012877,2]
[327266600,1715951439700,-574.6,0.00012878,2]
[327266602,1715951439710,-500.0,0.00012878,2]
[327266604,1715951439719,-500.0,0.00012878,2]
[327266606,1715951439729,-377.85304509,0.00012878,2]
[327266608,1715951439740,-500.0,0.00012878,2]
[327266610,1715951439750,-500.0,0.00012878,2]
[327266612,1715951439759,-500.0,0.00012878,2]
[327266614,1715951439770,-500.0,0.00012878,2]
[327266616,1715951439780,-500.0,0.00012878,2]
[327266618,1715951439790,-232.0577399,0.00012878,2]
[327266621,1715951439799,-500.0,0.00012878,2]
[327266622,1715951439811,-331.95,0.00012878,2]
[327266623,1715951439820,-500.0,0.00012878,2]
[327266624,1715951439831,-500.0,0.00012878,2]
[327266625,1715951439846,-344.24093195,0.00012878,2]
[327266626,1715951439855,-500.0,0.00012878,2]
[327266627,1715951439865,-500.0,0.00012878,2]
[327266628,1715951439874,-500.0,0.00012878,2]
[327266629,1715951439883,-500.0,0.00012878,2]
[327266631,1715951439892,-500.0,0.00012878,2]
[327266632,1715951439902,-500.0,0.00012878,2]
[327266634,1715951439911,-500.0,0.00012878,2]
[327266635,1715951439921,-253.85,0.00012878,2]
[327266636,1715951439930,-500.0,0.00012878,2]
[327266637,1715951439939,-326.68044559,0.00012878,2]
[327266638,1715951439949,-500.0,0.00012878,2]
[327266639,1715951439958,-500.0,0.00012878,2]
[327266640,1715951439968,-500.0,0.00012878,2]
[327266641,1715951439977,-386.31,0.00012878,2]
[327266642,1715951439987,-500.0,0.00012878,2]
[327266643,1715951439996,-500.0,0.00012878,2]
[327266645,1715951440006,-173.8,0.00012878,2]
[327266647,1715951440015,-500.0,0.00012878,2]
[327266649,1715951440025,-500.0,0.00012878,2]
[327266651,1715951440034,-500.0,0.00012878,2]
[327266653,1715951440044,-420.02125956,0.00012878,2]
[327266655,1715951440056,-398.37843702,0.00012878,2]
[327266657,1715951440065,-500.0,0.00012878,2]
[327266659,1715951440074,-500.0,0.00012878,2]
[327266661,1715951440085,-500.0,0.00012878,2]
[327266663,1715951440095,-500.0,0.00012878,2]
[327266665,1715951440104,-506.21,0.00012878,2]
[327266667,1715951440114,-434.2,0.00012878,2]
[327266669,1715951440124,-500.0,0.00012878,2]
[327266671,1715951440133,-500.0,0.00012878,2]
[327266673,1715951440143,-500.0,0.00012878,2]
[327266675,1715951440152,-500.0,0.00012878,2]
[327266677,1715951440162,-500.0,0.00012878,2]
[327266679,1715951440172,-500.0,0.00012878,2]
[327266680,1715951440181,-500.0,0.00012878,2]
[327266683,1715951440191,-500.0,0.00012878,2]
[327266685,1715951440200,-500.0,0.00012878,2]
[327266686,1715951440210,-500.0,0.00012878,2]
[327266688,1715951440219,-500.0,0.00012878,2]
[327266690,1715951440228,-500.0,0.00012878,2]
[327266692,1715951440238,-489.1603912,0.00012878,2]
[327266695,1715951440248,-500.0,0.00012878,2]
[327266696,1715951440258,-412.65300572,0.00012878,2]
[327266699,1715951440267,-500.0,0.00012878,2]
[327266701,1715951440277,-500.0,0.00012878,2]
[327266702,1715951440287,-500.0,0.00012878,2]
[327266705,1715951440296,-511.28,0.00012878,2]
[327266707,1715951440306,-500.0,0.00012878,2]
[327266708,1715951440315,-500.0,0.00012878,2]
[327266711,1715951440324,-151.0,0.00012878,2]
[327266713,1715951440334,-500.0,0.00012878,2]
[327266715,1715951440344,-500.0,0.00012878,2]
[327266716,1715951440353,-255.4343,0.00012878,2]
[327266719,1715951440363,-500.0,0.00012878,2]
[327266721,1715951440372,-255.4343,0.00012878,2]
[327266723,1715951440382,-500.0,0.00012878,2]
[327266725,1715951440391,-151.0,0.00012878,2]
[327266727,1715951440401,-151.0,0.00012878,2]
[327266730,1715951440410,-500.0,0.00012878,2]
[327266732,1715951440419,-581.97,0.00012878,2]
[327266734,1715951440430,-500.0,0.00012878,2]
[327266736,1715951440439,-500.0,0.00012878,2]
[327266738,1715951440449,-151.0,0.00012878,2]
[327266740,1715951440458,-151.0,0.00012878,2]
[327266742,1715951440467,-500.0,0.00012878,2]
[327266744,1715951440477,-613.75633045,0.00012878,2]
[327266746,1715951440486,-500.0,0.00012878,2]
[327266748,1715951440496,-249.52,0.00012878,2]
[327266750,1715951440506,-532.76546968,0.00012878,2]
[327266752,1715951440515,-151.0,0.00012878,2]
[327266754,1715951440524,-151.0,0.00012878,2]
[327266756,1715951440534,-238.477371,0.00012878,2]
[327266758,1715951440544,-500.0,0.00012878,2]
[327266760,1715951440554,-515.370449,0.00012878,2]
[327266762,1715951440563,-238.477371,0.00012878,2]
[327266764,1715951440572,-500.0,0.00012878,2]
[327266766,1715951440582,-151.0,0.00012878,2]
[327266768,1715951440592,-515.370449,0.00012878,2]
[327266770,1715951440601,-151.0,0.00012878,2]
[327266772,1715951440611,-151.0,0.00012878,2]
[327266774,1715951440620,-283.10564644,0.00012878,2]
[327266776,1715951440630,-500.0,0.00012878,2]
[327266778,1715951440639,-151.0,0.00012878,2]
[327266780,1715951440648,-151.0,0.00012878,2]
[327266782,1715951440658,-500.0,0.00012878,2]
[327266784,1715951440667,-151.0,0.00012878,2]
[327266786,1715951440676,-151.0,0.00012878,2]
[327266788,1715951440686,-151.919391,0.00012878,2]
[327266790,1715951440695,-500.0,0.00012878,2]
[327266792,1715951440704,-500.0,0.00012878,2]
[327266794,1715951440714,-151.0,0.00012878,2]
[327266796,1715951440723,-500.0,0.00012878,2]
[327266798,1715951440733,-500.0,0.00012878,2]
[327266800,1715951440742,-500.0,0.00012878,2]
[327266802,1715951440751,-258.45649071,0.00012878,2]
[327266804,1715951440760,-1485.82052,0.00012878,2]
[327266806,1715951440770,-500.0,0.00012878,2]
[327266808,1715951440779,-500.0,0.00012878,2]
[327266810,1715951440788,-1485.82052,0.00012878,2]
[327266812,1715951440800,-151.0,0.00012878,2]
[327266814,1715951440811,-500.0,0.00012878,2]
[327266816,1715951440820,-868.01,0.00012878,2]
[327266818,1715951440830,-500.0,0.00012878,2]
[327266820,1715951440842,-500.0,0.00012878,2]
[327266822,1715951440852,-500.0,0.00012878,2]
[327266824,1715951440861,-500.0,0.00012878,2]
[327266826,1715951440870,-151.0,0.00012878,2]
[327266828,1715951440881,-500.0,0.00012878,2]
[327266830,1715951440891,-170.987668,0.00012878,2]
[327266832,1715951440900,-253.60229024,0.00012878,2]
[327266834,1715951440909,-151.0,0.00012878,2]
[327266836,1715951440920,-151.0,0.00012878,2]
[327266838,1715951440930,-170.987668,0.00012878,2]
[327266840,1715951440939,-151.0,0.00012878,2]
[327266842,1715951440948,-152.535288,0.00012878,2]
[327266844,1715951440957,-500.0,0.00012878,2]
[327266845,1715951440967,-151.0,0.00012878,2]
[327266847,1715951440976,-151.0,0.00012878,2]
[327266849,1715951440985,-151.0,0.00012878,2]
[327266851,1715951440994,-217.51719,0.00012878,2]
[327266852,1715951441003,-5867.46418463,0.00012879,2]
[327266854,1715951441013,-150.01,0.00012879,2]
[327266856,1715951441022,-151.0,0.00012879,2]
[327266858,1715951441032,-284.165869,0.00012879,2]
[327266860,1715951441041,-188.89155813,0.00012879,2]
[327266862,1715951441051,-151.0,0.00012879,2]
[327266864,1715951441062,-284.165869,0.00012879,2]
[327266865,1715951441071,-151.0,0.00012879,2]
[327266867,1715951441081,-151.0,0.00012879,2]
[327266869,1715951441090,-151.0,0.00012879,2]
[327266871,1715951441100,-151.0,0.00012879,2]
[327266873,1715951441109,-151.0,0.00012879,2]
[327266875,1715951441119,-151.0,0.00012879,2]
[327266876,1715951441128,-151.0,0.00012879,2]
[327266878,1715951441137,-151.0,0.00012879,2]
[327266880,1715951441146,-151.0,0.00012879,2]
[327266882,1715951441155,-151.0,0.00012879,2]
[327266884,1715951441164,-151.0,0.00012879,2]
[327266885,1715951441173,-151.0,0.00012879,2]
[327266887,1715951441183,-151.0,0.00012879,2]
[327266889,1715951441193,-151.0,0.00012879,2]
[327266891,1715951441202,-151.0,0.00012879,2]
[327266893,1715951441211,-151.309042,0.00012879,2]
[327266895,1715951441221,-151.0,0.00012879,2]
[327266896,1715951441230,-18786.7338033,0.0001288,2]
[327266919,1715951441460,-399.20391486,0.0001288,2]
[327266921,1715951441472,-5360.194904,0.0001288,2]
[327266925,1715951441502,-4667.82184375,0.0001288,2]
[327266956,1715951441976,-1466.88746637,0.00012228,2]
[327266957,1715951442051,-2147.99293966,0.00012228,2]
[327266958,1715951442075,-921.02538503,0.00012228,2]
[327266959,1715951442089,-2964.09420894,0.00012228,2]
[327266960,1715951442098,-500.0,0.00012328,2]
[327266961,1715951442108,-500.0,0.00012328,2]
[327266962,1715951442118,-500.0,0.00012871,2]
[327266963,1715951442128,-151.0,0.00012878,2]
[327266964,1715951442137,-26200.65088429,0.0001288,2]
[327266965,1715951442146,-2000.0,0.0001288,2]
[327266966,1715951442155,-200.0,0.0001288,2]
[327266967,1715951442164,-177.68151497,0.0001288,2]
[327266968,1715951442173,-1377.29078847,0.0001288,2]
[327266969,1715951442182,-269.97661265,0.0001288,2]
[327266970,1715951442192,-198.10115353,0.0001288,2]
[327266971,1715951442201,-172.03572245,0.0001288,2]
[327266972,1715951442210,-160.958164,0.0001288,2]
[327266973,1715951442219,-151.0,0.0001288,2]
[327266974,1715951442229,-151.0,0.0001288,2]
[327266975,1715951442239,-8533.6257462,0.0001288,2]
[327266976,1715951442248,-151.0,0.0001288,2]
[327266977,1715951442257,-151.0,0.0001288,2]
[327266978,1715951442267,-2788.59718,0.0001288,2]
[327266979,1715951442276,-8533.62574617,0.00012882,2]
[327266980,1715951442285,-255.4343,0.00012882,2]
[327266981,1715951442294,-255.4343,0.00012882,2]
[327266982,1715951442303,-151.0,0.00012882,2]
[327266983,1715951442312,-151.0,0.00012882,2]
[327266984,1715951442322,-151.0,0.00012882,2]
[327266985,1715951442331,-151.0,0.00012882,2]
[327266986,1715951442340,-238.477371,0.00012882,2]
[327266987,1715951442349,-515.370449,0.00012882,2]
[327266988,1715951442359,-238.477371,0.00012882,2]
[327266989,1715951442368,-151.0,0.00012882,2]
[327266990,1715951442377,-515.370449,0.00012882,2]
[327266991,1715951442386,-151.0,0.00012882,2]
[327266992,1715951442396,-151.0,0.00012882,2]
[327266993,1715951442405,-151.0,0.00012882,2]
[327266994,1715951442414,-151.635128,0.00012882,2]
[327266995,1715951442424,-152.241372,0.00012882,2]
[327266996,1715951442433,-151.0,0.00012882,2]
[327266997,1715951442443,-151.0,0.00012882,2]
[327266998,1715951442452,-1485.82052,0.00012882,2]
[327266999,1715951442461,-1190.68923916,0.00012882,2]
[327267000,1715951442474,-295.13128084,0.00012882,2]
[327267001,1715951442483,-151.0,0.00012882,2]
[327267002,1715951442493,-151.0,0.00012882,2]
[327267003,1715951442502,-170.987668,0.00012882,2]
[327267004,1715951442511,-151.0,0.00012882,2]
[327267005,1715951442520,-170.987668,0.00012882,2]
[327267006,1715951442529,-151.0,0.00012882,2]
[327267007,1715951442538,-151.0,0.00012882,2]
[327267008,1715951442548,-151.0,0.00012882,2]
[327267009,1715951442558,-151.0,0.00012882,2]
[327267010,1715951442567,-151.0,0.00012882,2]
[327267011,1715951442576,-151.0,0.00012882,2]
[327267012,1715951442586,-8533.62574617,0.00012884,2]
[327267013,1715951442595,-151.0,0.00012884,2]
[327267014,1715951442605,-8533.62574617,0.00012885,2]
[327267015,1715951442614,-151.0,0.00012887,2]
[327267016,1715951442623,-151.0,0.00012887,2]
[327267017,1715951442633,-151.0,0.00012887,2]
[327267018,1715951442643,-500.0,0.00012887,2]
[327267019,1715951442653,-500.0,0.00012887,2]
[327267020,1715951442663,-500.0,0.00012887,2]
[327267021,1715951442672,-500.0,0.00012887,2]
[327267022,1715951442682,-500.0,0.00012887,2]
[327267023,1715951442692,-500.0,0.00012887,2]
[327267024,1715951442702,-648.02,0.00012887,2]
[327267025,1715951442712,-540.5,0.00012887,2]
[327267026,1715951442722,-500.0,0.00012887,2]
[327267027,1715951442731,-532.23,0.00012887,2]
[327267028,1715951442741,-500.0,0.00012887,2]
[327267029,1715951442752,-500.0,0.00012887,2]
[327267030,1715951442763,-500.0,0.00012887,2]
[327267031,1715951442772,-500.0,0.00012887,2]
[327267032,1715951442782,-500.0,0.00012887,2]
[327267033,1715951442792,-500.0,0.00012887,2]
[327267034,1715951442802,-500.0,0.00012887,2]
[327267035,1715951442812,-500.0,0.00012887,2]
[327267036,1715951442822,-500.0,0.00012887,2]
[327267037,1715951442837,-500.0,0.00012887,2]
[327267038,1715951442846,-4514.4,0.00012887,2]
[327267039,1715951442856,-500.0,0.00012887,2]
[327267040,1715951442865,-500.0,0.00012887,2]
[327267041,1715951442877,-500.0,0.00012887,2]
[327267042,1715951442887,-500.0,0.00012887,2]
[327267043,1715951442896,-500.0,0.00012887,2]
[327267044,1715951442907,-380.88876898,0.00012887,2]
[327267045,1715951442921,-500.0,0.00012887,2]
[327267046,1715951442931,-500.0,0.00012887,2]
[327267047,1715951442941,-561.65423442,0.00012887,2]
[327267048,1715951442952,-500.0,0.00012887,2]
[327267049,1715951442961,-500.0,0.00012887,2]
[327267050,1715951442971,-8533.62574617,0.00012887,2]
[327267051,1715951442981,-151.0,0.00012888,2]
[327267052,1715951442990,-151.0,0.00012888,2]
[327267053,1715951443000,-278.93612,0.00012888,2]
[327267054,1715951443010,-151.0,0.00012888,2]
[327267055,1715951443020,-151.0,0.00012888,2]
[327267056,1715951443030,-151.0,0.00012888,2]
[327267057,1715951443040,-151.0,0.00012888,2]
[327267058,1715951443050,-8533.62574617,0.00012889,2]
[327267059,1715951443060,-1445.2,0.0001289,5]
[327267060,1715951443070,-8533.62574617,0.00012891,2]
[327267061,1715951443080,-8533.62574617,0.00012893,2]
[327267062,1715951443090,-154.839553,0.00012893,2]
[327267063,1715951443099,-151.0,0.00012893,2]
[327267064,1715951443109,-7629.08300777,0.00012895,2]
[327267065,1715951443123,-904.5427384,0.00012895,2]
[327267066,1715951443132,-151.0,0.00012896,2]
[327267067,1715951443142,-8533.62574617,0.00012896,2]
[327267068,1715951443152,-623.222624,0.00012898,2]
[327267069,1715951443162,-8533.62574617,0.00012898,2]
[327267070,1715951443172,-2408.42314526,0.000129,2]
[327267071,1715951443184,-1367.13570444,0.000129,2]
[327267072,1715951443270,-500.0,0.00012328,2]
[327267073,1715951443280,-299.464547,0.00012871,2]
[327267074,1715951443292,-200.535453,0.00012871,2]
[327267075,1715951443302,-430.4111446,0.00012887,2]
[327267076,1715951443313,-2026.02271842,0.000129,2]
[327267077,1715951443325,-2732.04417805,0.000129,2]
[327267078,1715951443334,-198.59813838,0.000129,2]
[327267079,1715951443343,-180.10524637,0.000129,2]
[327267080,1715951443352,-180.10524634,0.000129,2]
[327267081,1715951443361,-180.10524634,0.000129,2]
[327267083,1715951443371,-180.10524634,0.000129,2]
[327267085,1715951443381,-180.10524634,0.000129,2]
[327267087,1715951443391,-180.10524634,0.000129,2]
[327267088,1715951443401,-180.10524634,0.000129,2]
[327267090,1715951443410,-180.10524634,0.000129,2]
[327267094,1715951443420,-199.32461269,0.000129,2]
[327267096,1715951443430,-5682.1897336,0.000129,2]
[327267098,1715951443439,-220.15257245,0.000129,2]
[327267100,1715951443449,-3297.73084337,0.000129,2]
[327267103,1715951443459,-592.6,0.00012938,2]
[327267105,1715951443469,-505.16,0.00012938,2]
[327267108,1715951443479,-500.0,0.00012938,2]
[327267111,1715951443488,-500.0,0.00012938,2]
[327267112,1715951443498,-499.96398004,0.00012938,2]
[327267113,1715951443508,-1302.43100439,0.00012938,2]
[327267114,1715951443521,-263.62899561,0.00012938,2]
[327267115,1715951443530,-500.0,0.00012938,2]
[327267116,1715951443540,-500.0,0.00012938,2]
[327267117,1715951443550,-500.0,0.00012938,2]
[327267118,1715951443562,-278.93030399,0.00012938,2]
[327267119,1715951443573,-17.72303101,0.00012938,2]
[327267120,1715951443584,-565.6,0.00012938,2]
[327267121,1715951443593,-151.0,0.00012938,2]
[327267122,1715951443603,-500.0,0.00012938,2]
[327267123,1715951443613,-151.0,0.00012938,2]
[327267124,1715951443622,-332.97,0.00012938,2]
[327267125,1715951443632,-238.477371,0.00012938,2]
[327267126,1715951443642,-515.370449,0.00012938,2]
[327267127,1715951443652,-238.477371,0.00012938,2]
[327267128,1715951443662,-151.0,0.00012938,2]
[327267129,1715951443672,-500.0,0.00012938,2]
[327267130,1715951443682,-515.370449,0.00012938,2]
[327267131,1715951443692,-500.0,0.00012938,2]
[327267132,1715951443702,-151.0,0.00012938,2]
[327267133,1715951443711,-151.0,0.00012938,2]
[327267134,1715951443720,-5.18798242,0.00012938,2]
[327267135,1715951443733,-596.36647081,0.00012938,2]
[327267136,1715951443746,-278.78554677,0.00012938,2]
[327267137,1715951443755,-151.0,0.00012938,2]
[327267138,1715951443765,-500.0,0.00012938,2]
[327267139,1715951443775,-500.0,0.00012938,2]
[327267140,1715951443785,-151.0,0.00012938,2]
[327267141,1715951443795,-151.0,0.00012938,2]
[327267142,1715951443806,-500.0,0.00012938,2]
[327267143,1715951443815,-1485.82052,0.00012938,2]
[327267144,1715951443824,-1485.82052,0.00012938,2]
[327267145,1715951443835,-1430.00051323,0.00012938,2]
[327267146,1715951443849,-281.186742,0.00012938,2]
[327267147,1715951443861,-1893.33274477,0.00012938,2]
[327267148,1715951443871,-500.0,0.00012938,2]
[327267149,1715951443881,-500.0,0.00012938,2]
[327267150,1715951443891,-212.28,0.00012938,2]
[327267151,1715951443901,-174.82,0.00012938,2]
[327267152,1715951443910,-752.33,0.00012938,2]
[327267153,1715951443923,-696.95,0.00012938,2]
[327267154,1715951443933,-151.0,0.00012938,2]
[327267155,1715951443943,-500.0,0.00012938,2]
[327267156,1715951443953,-170.987668,0.00012938,2]
[327267157,1715951443963,-94.25171748,0.00012938,2]
[327267158,1715951443977,-56.74828252,0.00012938,2]
[327267159,1715951443986,-170.987668,0.00012938,2]
[327267160,1715951443996,-151.0,0.00012938,2]
[327267161,1715951444006,-500.0,0.00012938,2]
[327267163,1715951444017,-500.0,0.00012938,2]
[327267165,1715951444027,-500.0,0.00012938,2]
[327267167,1715951444037,-500.0,0.00012938,2]
[327267169,1715951444047,-151.0,0.00012938,2]
[327267171,1715951444057,-500.0,0.00012938,2]
[327267173,1715951444066,-248.088801,0.00012938,2]
[327267174,1715951444076,-86.16290203,0.00012938,2]
[327267175,1715951444088,-64.83709797,0.00012938,2]
[327267176,1715951444098,-426.91,0.00012939,2]
[327267177,1715951444108,-500.0,0.00012939,2]
[327267178,1715951444117,-500.0,0.00012939,2]
[327267179,1715951444127,-500.0,0.00012939,2]
[327267180,1715951444136,-500.0,0.00012939,2]
[327267181,1715951444146,-161.192506,0.00012939,2]
[327267182,1715951444155,-500.0,0.00012939,2]
[327267183,1715951444165,-631.62,0.00012939,2]
[327267184,1715951444175,-500.0,0.00012939,2]
[327267185,1715951444185,-330.9230153,0.00012939,2]
[327267186,1715951444197,-169.0769847,0.00012939,2]
[327267187,1715951444207,-84.36799428,0.00012939,2]
[327267188,1715951444219,-345.91147168,0.00012939,2]
[327267189,1715951444231,-69.72053404,0.00012939,2]
[327267190,1715951444241,-614.23,0.00012939,2]
[327267191,1715951444250,-500.0,0.00012939,2]
[327267192,1715951444260,-22.01895248,0.00012939,2]
[327267193,1715951444273,-128.98104752,0.00012939,2]
[327267194,1715951444283,-151.0,0.00012939,2]
[327267195,1715951444293,-61.00220189,0.00012939,2]
[327267196,1715951444305,-202.64779811,0.00012939,2]
[327267197,1715951444315,-317.56088954,0.00012939,2]
[327267198,1715951444325,-500.0,0.00012939,2]
[327267199,1715951444334,-67.08131235,0.00012939,2]
[327267200,1715951444346,-432.91868765,0.00012939,2]
[327267201,1715951444356,-151.0,0.00012939,2]
[327267202,1715951444366,-151.0,0.00012939,2]
[327267203,1715951444376,-424.2356826,0.00012939,2]
[327267204,1715951444385,-284.165869,0.00012939,2]
[327267205,1715951444395,-151.0,0.00012939,2]
[327267206,1715951444404,-284.165869,0.00012939,2]
[327267207,1715951444414,-151.0,0.00012939,2]
[327267208,1715951444424,-151.0,0.00012939,2]
[327267209,1715951444434,-151.0,0.00012939,2]
[327267210,1715951444444,-151.0,0.00012939,2]
[327267211,1715951444454,-500.0,0.00012939,2]
[327267212,1715951444463,-151.0,0.00012939,2]
[327267213,1715951444473,-261.394512,0.00012939,2]
[327267214,1715951444483,-151.0,0.00012939,2]
[327267215,1715951444494,-151.0,0.00012939,2]
[327267216,1715951444503,-151.0,0.00012939,2]
[327267217,1715951444513,-151.0,0.00012939,2]
[327267218,1715951444523,-500.0,0.00012939,2]
[327267219,1715951444533,-484.16,0.00012939,2]
[327267220,1715951444543,-500.0,0.00012939,2]
[327267221,1715951444553,-500.0,0.00012939,2]
[327267222,1715951444565,-500.0,0.00012939,2]
[327267223,1715951444576,-151.0,0.00012939,2]
[327267224,1715951444586,-255.4343,0.00012939,2]
[327267225,1715951444596,-500.0,0.00012939,2]
[327267226,1715951444606,-255.4343,0.00012939,2]
[327267227,1715951444615,-500.0,0.00012939,2]
[327267228,1715951444625,-228.660453,0.00012939,2]
[327267229,1715951444635,-500.0,0.00012939,2]
[327267230,1715951444645,-500.0,0.00012939,2]
[327267231,1715951444655,-500.0,0.00012939,2]
[327267232,1715951444665,-157.18033508,0.00012939,2]
[327267233,1715951444678,-342.81966492,0.00012939,2]
[327267234,1715951444687,-500.0,0.00012939,2]
[327267235,1715951444697,-500.0,0.00012939,2]
[327267236,1715951444707,-500.0,0.00012939,2]
[327267237,1715951444716,-500.0,0.00012939,2]
[327267238,1715951444726,-500.0,0.00012939,2]
[327267239,1715951444736,-500.0,0.00012939,2]